bitfinex-derivatives/quotes_BNBF0:USTF0_20250221
["timestamp","ask_amount","ask_price","bid_price","bid_amount"]
[1740119138861,1.30700691,653.58,652.48,2.17859161]
[1740119139057,1.30700691,653.58,652.49,2.17859161]
[1740119139362,1.30700691,653.58,652.5,5.20090804]
[1740119139560,1.30700691,653.58,652.51,2.17859161]
[1740119139757,1.30700691,653.58,652.52,2.17859161]
[1740119139961,1.30700691,653.58,652.53,2.17859161]
[1740119140163,1.30700691,653.58,652.54,2.17859161]
[1740119140358,1.30700691,653.58,652.55,2.17859161]
[1740119140563,1.30700691,653.58,652.56,2.17859161]
[1740119140762,1.30700691,653.58,652.57,2.17859161]
[1740119140965,1.30700691,653.58,652.57,3.02231643]
[1740119142765,1.30700691,653.58,652.4,1.14763846]
[1740119142967,1.30700691,653.58,652.41,3.32582391]
[1740119143163,1.30700691,653.58,652.42,2.17818545]
[1740119143466,1.30700691,653.58,652.43,5.19973239]
[1740119143667,1.30700691,653.58,652.44,2.17818545]
[1740119143865,1.30700691,653.58,652.45,2.17818545]
[1740119144066,1.30700691,653.58,652.46,2.17818545]
[1740119144267,1.30700691,653.58,652.47,2.17818545]
[1740119144468,1.30700691,653.58,652.48,2.17818545]
[1740119144663,1.30700691,653.58,652.43,3.02154694]
[1740119144868,1.30700691,653.58,652.44,2.17796931]
[1740119145164,1.30700691,653.58,652.45,5.19951625]
[1740119145370,1.30700691,653.58,652.46,2.17796931]
[1740119145571,1.30700691,653.58,652.45,3.02154694]
[1740119147170,1.30700691,653.58,652.4,1.14763846]
[1740119148970,1.30700691,653.58,652.41,2.17767381]
[1740119149172,1.30700691,653.58,652.42,2.17767381]
[1740119149365,1.30700691,653.58,652.4,1.14763846]
[1740119149568,1.30700691,653.58,652.41,2.17758137]
[1740119149766,1.30700691,653.58,652.42,2.17758137]
[1740119149970,1.30700691,653.58,652.41,3.02083909]
[1740119150165,1.30700691,653.58,652.42,2.17758283]
[1740119150365,1.30700691,653.58,652.41,3.02083909]
[1740119150670,1.30700691,653.58,652.42,2.17749419]
[1740119150870,1.30700691,653.58,652.43,2.17749419]
[1740119151071,1.30700691,653.58,652.44,5.19833328]
[1740119151269,1.30700691,653.58,652.45,2.17748826]
[1740119151470,1.30700691,653.58,652.46,2.17748826]
[1740119151665,1.30700691,653.58,652.47,2.17748826]
[1740119151970,1.30700691,653.58,652.48,2.17748826]
[1740119152171,1.30700691,653.58,652.49,5.19832735]
[1740119152372,1.30700691,653.58,652.49,3.02083909]
[1740119153476,1.30700691,653.58,652.5,2.17728771]
[1740119153675,1.30700691,653.58,652.51,2.17728771]
[1740119153878,1.30700691,653.58,652.52,5.1981268]
[1740119154077,1.30700691,653.58,652.53,2.17728771]
[1740119154377,1.30700691,653.58,652.52,3.02083909]
[1740119154573,1.30700691,653.58,652.53,2.1772245]
[1740119154778,1.30700691,653.58,652.52,3.02083909]
[1740119155077,1.30700691,653.58,652.53,2.17722196]
[1740119155272,1.30700691,653.58,652.53,3.02083909]
[1740119155476,1.30700691,653.58,652.54,2.1771401]
[1740119155679,1.30700691,653.58,652.53,3.02083909]
[1740119156272,1.30700691,653.58,652.54,2.17715604]
[1740119156477,1.30700691,653.58,652.53,3.02083909]
[1740119156680,1.30700691,653.58,652.37,1.14763846]
[1740119156878,1.30700691,653.58,652.38,2.17709091]
[1740119157075,1.30700691,653.58,652.39,5.19721914]
[1740119157280,1.30700691,653.58,652.4,2.17709091]
[1740119157475,1.30700691,653.58,652.39,3.02012823]
[1740119159186,1.30700691,653.58,652.3,1.14763846]
[1740119159378,1.30700691,653.58,652.31,2.17699021]
[1740119159579,1.30700691,653.58,652.32,2.17699021]
[1740119159782,1.30700691,653.58,652.33,2.17699021]
[1740119159982,1.30700691,653.58,652.34,2.17699021]
[1740119160184,1.30700691,653.58,652.35,2.17694749]
[1740119160485,1.30700691,653.58,652.31,3.01996316]
[1740119160685,1.30700691,653.58,652.32,2.17691073]
[1740119160984,1.30700691,653.58,652.33,2.17691073]
[1740119161286,1.30700691,653.58,652.31,3.01996316]
[1740119161581,1.30700691,653.58,652.32,2.1769276]
[1740119161784,1.30700691,653.58,652.33,2.1769276]
[1740119162087,1.30700691,653.58,652.34,2.17691297]
[1740119162286,1.30700691,653.58,652.34,1.14763846]
[1740119163084,1.30700691,653.58,652.35,3.01996316]
[1740119164786,1.30700691,653.58,652.36,3.01996316]
[1740119166382,1.30700691,653.58,652.37,2.17711441]
[1740119166581,1.30700691,653.58,652.38,2.17711441]
[1740119166784,1.30700691,653.58,652.39,2.17711441]
[1740119166985,1.30700691,653.58,652.4,2.17711441]
[1740119167179,1.30700691,653.58,652.41,2.17711441]
[1740119167381,1.30700691,653.58,652.42,2.17709905]
[1740119167580,1.30700691,653.58,652.43,2.17709905]
[1740119167786,1.30700691,653.58,652.4,3.01996316]
[1740119167985,1.30700691,653.58,652.41,2.1771747]
[1740119168182,1.30700691,653.58,652.4,3.01996316]
[1740119168390,1.30700691,653.58,652.41,2.17715352]
[1740119168590,1.30700691,653.58,652.4,3.01996316]
[1740119168792,1.30700691,653.58,652.41,2.17723329]
[1740119169091,1.30700691,653.58,652.42,5.19719645]
[1740119169285,1.30700691,653.58,652.42,3.01996316]
[1740119170592,1.30700691,653.58,652.43,3.01996316]
[1740119170986,1.30700691,653.58,652.44,2.17743616]
[1740119171186,1.30700691,653.58,652.43,3.01996316]
[1740119171390,1.30700691,653.58,652.44,2.17737956]
[1740119171591,1.30700691,653.58,652.43,3.01996316]
[1740119171995,1.30700691,653.58,652.42,1.14763846]
[1740119173394,1.30700691,653.58,652.21,1.14763846]
[1740119173395,1.30700691,653.58,652.44,1.14763846]
[1740119176794,1.30700691,653.58,652.27,1.14763846]
[1740119180099,1.30700691,653.58,651.5,2.3430952]
[1740119180100,1.30700691,653.58,652.29,1.14763846]
[1740119181400,1.30700691,653.58,652.3,2.17725485]
[1740119181598,1.30700691,653.58,652.31,2.17725485]
[1740119181796,1.30700691,653.58,652.32,5.1975622]
[1740119181994,1.30700691,653.58,652.33,2.17725485]
[1740119182199,1.30700691,653.58,652.34,2.17725485]
[1740119182394,1.30700691,653.58,652.32,3.02030735]
[1740119182596,1.30700691,653.58,652.33,2.17731867]
[1740119182797,1.30700691,653.58,652.34,2.17731867]
[1740119182998,1.30700691,653.58,652.32,3.02030735]
[1740119182999,1.30700691,653.58,652.37,1.14763846]
[1740119191506,1.30700691,653.58,652.14,1.14763846]
[1740119191507,1.30700691,653.58,652.2,1.14763846]
[1740119195807,1.30700691,653.58,652.22,1.14763846]
[1740119199516,1.30700691,653.58,652.23,5.20272993]
[1740119199717,1.30700691,653.58,652.24,2.17939869]
[1740119199916,1.30700691,653.58,652.25,2.17939869]
[1740119200110,1.30700691,653.58,652.26,2.17939869]
[1740119200314,1.30700691,653.58,652.27,2.17939869]
[1740119200511,1.30700691,653.58,652.28,2.17939869]
[1740119200714,1.30700691,653.58,652.29,2.17939869]
[1740119200911,1.30700691,653.58,652.3,2.17939869]
[1740119201215,1.30700691,653.58,652.31,2.17939869]
[1740119201517,1.30700691,653.58,652.29,3.02333124]
[1740119202516,1.30700691,653.58,652.19,1.14763846]
[1740119203018,1.30700691,653.58,652.33,1.14763846]
[1740119205720,1.30700691,653.58,652.26,1.14763846]
[1740119206220,1.30700691,653.58,652.27,2.17912165]
[1740119206416,1.30700691,653.58,652.26,1.14763846]
[1740119206620,1.30700691,653.58,652.28,3.02200382]
[1740119208221,1.30700691,653.58,652.26,1.14763846]
[1740119208917,1.30700691,653.58,652.24,1.14763846]
[1740119208918,1.14842678,653.56,652.24,1.14763846]
[1740119209121,0.30602564,653.54,652.24,1.14763846]
[1740119209322,0.30602564,653.54,652.25,2.1777247]
[1740119209522,0.30602564,653.54,652.26,2.1777247]
[1740119209721,0.30602564,653.54,652.26,3.02040825]
[1740119210414,0.30602564,653.54,652.27,2.17723406]
[1740119210613,0.30602564,653.54,652.28,2.17723406]
[1740119210816,0.30602564,653.54,652.26,3.02040825]
[1740119211822,0.30602564,653.54,652.27,3.02040825]
[1740119213023,0.30602564,653.54,652.2,1.14763846]
[1740119213726,0.30602564,653.54,652.1,1.14763846]
[1740119213920,0.30602564,653.54,652.11,2.17663119]
[1740119214225,0.30602564,653.54,652.12,2.17663119]
[1740119214421,0.30602564,653.54,652.13,2.17663119]
[1740119214621,0.30602564,653.54,652.14,2.17663119]
[1740119214822,0.30602564,653.54,652.11,3.01928207]
[1740119214823,0.30602564,653.54,652.15,2.17663119]
[1740119215019,0.30602564,653.54,652.16,2.17663119]
[1740119215220,0.30602564,653.54,652.17,2.17663119]
[1740119215425,0.30602564,653.54,652.18,2.17663119]
[1740119215723,0.30602564,653.54,652.19,2.17663119]
[1740119215926,0.30602564,653.54,652.2,2.17663119]
[1740119216120,0.30602564,653.54,652.21,2.17663119]
[1740119216322,0.30602564,653.54,652.22,2.17663119]
[1740119216521,0.30602564,653.54,652.18,3.01928207]
[1740119217430,0.30602564,653.54,645.25,9.19266079]
[1740119217431,0.30602564,653.54,652.19,3.01928207]
[1740119218629,0.30602564,653.54,652.14,1.14763846]
[1740119219330,0.30602564,653.54,652.15,3.01869662]
[1740119221226,0.30602564,653.54,652.08,1.14763846]
[1740119221734,0.30602564,653.54,652.09,5.1946795]
[1740119221926,0.30602564,653.54,652.1,2.17610609]
[1740119222129,0.30602564,653.54,652.11,2.17610609]
[1740119222332,0.30602564,653.54,652.12,2.17610609]
[1740119222534,0.30602564,653.54,652.13,2.17610609]
[1740119222732,0.30602564,653.54,652.14,2.17610609]
[1740119222937,0.30602564,653.54,652.15,2.17610609]
[1740119223138,0.30602564,653.54,652.16,2.17610609]
[1740119223436,0.30602564,653.54,652.15,3.01857341]
[1740119223632,0.30602564,653.54,652.16,2.17600132]
[1740119223832,0.30602564,653.54,652.15,3.01857341]
[1740119224440,0.30602564,653.54,652.16,3.01857341]
[1740119225939,0.30602564,653.54,652.17,3.01857341]
[1740119226237,0.30602564,653.54,652.18,2.17595663]
[1740119226440,0.30602564,653.54,652.19,2.17595663]
[1740119226642,0.30602564,653.54,652.17,3.01857341]
[1740119228136,0.30602564,653.54,652.14,1.14763846]
[1740119228339,0.30602564,653.54,652.15,5.19443254]
[1740119228537,0.30602564,653.54,652.16,2.17599278]
[1740119228743,0.30602564,653.54,652.17,2.17599278]
[1740119228943,0.30602564,653.54,652.18,2.17599278]
[1740119229142,0.30602564,653.54,652.19,2.17599278]
[1740119229344,0.30602564,653.54,652.2,2.17599278]
[1740119229539,0.30602564,653.54,652.21,2.17599278]
[1740119229738,0.30602564,653.54,652.22,5.19443254]
[1740119229942,0.30602564,653.54,652.23,2.17599278]
[1740119230145,0.30602564,653.54,652.24,2.17599278]
[1740119230444,0.30602564,653.54,652.25,2.17599278]
[1740119230641,0.30602564,653.54,652.26,2.17599278]
[1740119230843,0.30602564,653.54,652.27,2.17599278]
[1740119231040,0.30602564,653.54,652.26,3.01843976]
[1740119231241,0.30602564,653.54,652.27,2.17589626]
[1740119231442,0.30602564,653.54,652.26,3.01843976]
[1740119232345,0.30602564,653.54,652.1,1.14763846]
[1740119232542,0.30602564,653.54,652.11,2.17591579]
[1740119232743,0.30602564,653.54,652.12,2.17591579]
[1740119232948,0.30602564,653.54,652.17,1.14763846]
[1740119235951,0.30602564,653.54,652.1,1.14763846]
[1740119237754,1.481,653.53,652.1,1.14763846]
[1740119237949,0.30603969,653.51,652.1,1.14763846]
[1740119240354,0.30603969,653.51,652.14,1.14763846]
[1740119243155,0.30603969,653.51,652.15,5.19222672]
[1740119243351,0.30603969,653.51,652.16,2.1751587]
[1740119243656,0.30603969,653.51,652.17,2.17501582]
[1740119243853,0.30603969,653.51,652.18,2.17501582]
[1740119244054,0.30603969,653.51,652.15,3.01706802]
[1740119244257,1.14842678,653.48,652.16,2.17494782]
[1740119244457,0.30606311,653.46,652.15,3.01706802]
[1740119244758,0.30606311,653.46,652.16,5.19197325]
[1740119244957,0.30606311,653.46,652.17,2.17490523]
[1740119245153,0.30606311,653.46,652.16,3.01706802]
[1740119245361,0.30606311,653.46,652.17,2.17483911]
[1740119245554,0.30606311,653.46,652.16,3.01706802]
[1740119245754,0.30606311,653.46,652.17,3.01706802]
[1740119246759,0.30606311,653.46,652.18,2.17491987]
[1740119246959,0.30606311,653.46,652.19,2.17491987]
[1740119247155,0.30606311,653.46,652.2,2.17491987]
[1740119247352,0.30606311,653.46,652.19,3.01706802]
[1740119247557,0.30606311,653.46,652.2,2.17495047]
[1740119247758,0.30606311,653.46,652.19,3.01706802]
[1740119247959,0.30606311,653.46,652.2,2.17493276]
[1740119248153,0.30606311,653.46,652.19,3.01706802]
[1740119248354,0.30606311,653.46,652.2,2.17493276]
[1740119248558,0.30606311,653.46,652.21,2.17493276]
[1740119248758,0.30606311,653.46,652.21,3.01706802]
[1740119250362,0.30606311,653.46,652.22,3.01706802]
[1740119250958,0.30606311,653.46,652.23,2.17528799]
[1740119251161,0.30606311,653.46,652.24,2.17528799]
[1740119251359,0.30606311,653.46,652.25,2.17528799]
[1740119251559,0.30606311,653.46,652.26,5.19235601]
[1740119251760,0.30606311,653.46,652.27,2.17528799]
[1740119251960,0.30606311,653.46,652.26,3.01706802]
[1740119252256,0.30606311,653.46,652.27,2.17538737]
[1740119252456,0.30606311,653.46,652.26,3.01706802]
[1740119252661,0.30606311,653.46,652.27,2.17550374]
[1740119252861,0.30606311,653.46,652.28,5.19257176]
[1740119253165,0.30606311,653.46,652.29,2.17550374]
[1740119253356,0.30606311,653.46,652.28,3.01706802]
[1740119253862,0.30606311,653.46,652.29,3.01706802]
[1740119254363,0.30606311,653.46,652.3,2.17607826]
[1740119254558,0.30606311,653.46,652.29,3.01706802]
[1740119254758,0.30606311,653.46,652.3,2.1761883]
[1740119254961,0.30606311,653.46,652.31,5.19325632]
[1740119255161,0.30606311,653.46,652.31,3.01706802]
[1740119255764,0.30606311,653.46,652.32,2.17636233]
[1740119255963,0.30606311,653.46,652.33,2.17636233]
[1740119256164,0.30606311,653.46,652.31,3.01706802]
[1740119256465,0.30606311,653.46,652.32,2.17634198]
[1740119256664,0.30606311,653.46,652.31,3.01706802]
[1740119256866,0.30606311,653.46,652.32,2.1765237]
[1740119257066,0.30606311,653.46,652.31,3.01706802]
[1740119257263,0.30606311,653.46,652.33,3.01706802]
[1740119258666,0.30606311,653.46,652.21,1.14763846]
[1740119258667,1.14842678,653.41,652.21,1.14763846]
[1740119258866,1.14842678,653.41,652.22,5.19657713]
[1740119259065,1.14842678,653.41,652.23,2.17696964]
[1740119259260,1.14842678,653.41,652.24,2.17696964]
[1740119259561,1.14842678,653.41,652.25,2.17696964]
[1740119259763,1.14842678,653.41,652.26,2.17696964]
[1740119259964,1.14842678,653.41,652.27,2.17696964]
[1740119260164,1.14842678,653.41,652.22,3.01960749]
[1740119260365,1.14842678,653.41,652.23,2.17727098]
[1740119260559,1.14842678,653.41,652.24,2.17727098]
[1740119260767,1.14842678,653.41,652.25,2.17727098]
[1740119260966,1.14842678,653.41,652.26,2.17727098]
[1740119261266,1.14842678,653.41,652.27,2.17727098]
[1740119261467,1.14842678,653.41,652.23,3.01960749]
[1740119261662,0.30609589,653.39,652.23,3.01960749]
[1740119262066,0.30609589,653.39,652.21,1.14763846]
[1740119264968,1.06,653.38,652.21,1.14763846]
[1740119265165,0.30610995,653.36,652.13,1.14763846]
[1740119265365,0.30610995,653.36,652.14,2.17822895]
[1740119265564,0.30610995,653.36,652.15,2.17822895]
[1740119265766,0.30610995,653.36,652.16,2.17816569]
[1740119265965,0.30610995,653.36,652.14,3.02125495]
[1740119266271,0.30610995,653.36,652.15,2.17815994]
[1740119266470,0.30610995,653.36,652.16,2.17815994]
[1740119266671,0.30610995,653.36,652.17,2.17815994]
[1740119266867,0.30610995,653.36,652.18,5.19941489]
[1740119267071,0.30610995,653.36,652.18,3.02125495]
[1740119268966,0.30610995,653.36,652.19,3.02125495]
[1740119271172,0.30610995,653.36,652.2,3.02125495]
[1740119271372,0.30610995,653.36,652.21,2.17784235]
[1740119271572,0.30610995,653.36,652.22,2.17784235]
[1740119271766,0.30610995,653.36,652.23,2.17784235]
[1740119271970,0.30610995,653.36,652.24,2.17784235]
[1740119272267,0.30610995,653.36,652.25,2.17784235]
[1740119272472,0.30610995,653.36,652.26,2.17784235]
[1740119272667,0.30610995,653.36,652.27,2.17784235]
[1740119272870,0.30610995,653.36,652.28,2.17784235]
[1740119273071,0.30610995,653.36,652.25,3.02125495]
[1740119273271,0.30610995,653.36,652.26,2.17780958]
[1740119273471,0.30610995,653.36,652.27,2.17780958]
[1740119273672,0.30610995,653.36,652.25,3.02125495]
[1740119273875,0.30610995,653.36,652.26,2.17771892]
[1740119274071,0.30610995,653.36,652.25,3.02125495]
[1740119274276,0.30610995,653.36,652.26,5.19898335]
[1740119274577,0.30610995,653.36,652.27,2.17761427]
[1740119274777,0.30610995,653.36,652.28,2.17758487]
[1740119274976,0.30610995,653.36,652.26,3.02125495]
[1740119275276,0.30610995,653.36,652.27,2.17755666]
[1740119275469,0.30610995,653.36,652.28,2.17755666]
[1740119275673,0.30610995,653.36,652.29,2.17755666]
[1740119275873,0.30610995,653.36,652.3,5.19881161]
[1740119276075,0.30610995,653.36,652.3,3.02125495]
[1740119276976,0.30610995,653.36,652.31,2.17757717]
[1740119277177,0.30610995,653.36,652.32,2.17757717]
[1740119277376,0.30610995,653.36,652.33,5.19883212]
[1740119277675,0.30610995,653.36,652.34,2.17757717]
[1740119277975,0.30610995,653.36,652.33,3.02125495]
[1740119279378,0.30610995,653.36,652.18,1.14763846]
[1740119279677,0.30610995,653.36,652.19,2.1776507]
[1740119279977,0.30610995,653.36,652.2,5.19823551]
[1740119280177,0.30610995,653.36,652.21,2.1776507]
[1740119280477,0.30610995,653.36,652.22,2.1776507]
[1740119280669,0.30610995,653.36,652.23,2.1776507]
[1740119280875,0.30610995,653.36,652.24,2.1776507]
[1740119281076,0.30610995,653.36,652.25,2.1776507]
[1740119281277,0.30610995,653.36,652.26,2.1776507]
[1740119281579,0.30610995,653.36,652.27,2.1776507]
[1740119281879,0.30610995,653.36,652.28,2.1776507]
[1740119282080,0.30610995,653.36,652.29,2.17780592]
[1740119282273,0.30610995,653.36,652.25,3.02058481]
[1740119282474,0.30610995,653.36,652.26,2.17786932]
[1740119282678,0.30610995,653.36,652.25,3.02058481]
[1740119282679,0.30610995,653.36,652.27,2.17786932]
[1740119282874,0.30610995,653.36,652.28,2.17786932]
[1740119283078,0.30610995,653.36,652.27,3.02058481]
[1740119283079,0.30610995,653.36,652.29,2.17786932]
[1740119283274,0.30610995,653.36,652.3,2.17786932]
[1740119283476,0.30610995,653.36,652.27,3.02058481]
[1740119283683,0.30610995,653.36,652.28,2.17797679]
[1740119283880,0.30610995,653.36,652.29,2.17797679]
[1740119284083,0.30610995,653.36,652.3,2.17797679]
[1740119284285,0.30610995,653.36,652.27,3.02058481]
[1740119284487,0.30610995,653.36,652.31,3.02058481]
[1740119285485,0.30610995,653.36,652.32,2.17815144]
[1740119285686,0.30610995,653.36,652.31,3.02058481]
[1740119285885,0.30610995,653.36,652.32,2.17826456]
[1740119286084,0.30610995,653.36,652.32,3.02058481]
[1740119286485,0.30610995,653.36,652.33,2.17840001]
[1740119286690,0.30610995,653.36,652.32,3.02058481]
[1740119287780,0.30610995,653.36,652.33,5.19898994]
[1740119288084,0.30610995,653.36,652.34,2.17840513]
[1740119288280,0.30610995,653.36,652.35,2.17840513]
[1740119288484,0.30610995,653.36,652.36,2.17840513]
[1740119288685,0.30610995,653.36,652.37,2.17840513]
[1740119288886,0.30610995,653.36,652.38,2.17840513]
[1740119289185,1.14842678,653.31,652.39,2.17840513]
[1740119289381,0.30614275,653.29,652.4,5.19898994]
[1740119289583,0.30614275,653.29,652.41,2.17840513]
[1740119289786,0.30614275,653.29,652.42,2.17840513]
[1740119289986,0.30614275,653.29,652.43,2.17857724]
[1740119290286,0.30614275,653.29,652.4,3.02058481]
[1740119290486,0.30614275,653.29,652.41,2.17859771]
[1740119290681,0.30614275,653.29,652.42,2.17859771]
[1740119290986,0.30614275,653.29,652.41,3.02058481]
[1740119291186,0.30614275,653.29,652.42,2.17869965]
[1740119291379,0.30614275,653.29,652.41,3.02058481]
[1740119291579,1.14842678,653.25,652.42,2.17882716]
[1740119291785,0.30617087,653.23,652.41,3.02058481]
[1740119291985,0.30617087,653.23,652.42,2.1788265]
[1740119292281,0.30617087,653.23,652.43,3.02058481]
[1740119292486,0.30617087,653.23,652.44,2.17878297]
[1740119292685,0.30617087,653.23,652.43,3.02058481]
[1740119292985,0.30617087,653.23,652.44,2.17877643]
[1740119293187,0.30617087,653.23,652.45,2.17878715]
[1740119293385,0.30617087,653.23,652.43,3.02058481]
[1740119293588,0.30617087,653.23,652.44,2.17882525]
[1740119293785,0.30617087,653.23,652.45,2.17882525]
[1740119294079,0.30617087,653.23,652.45,3.02058481]
[1740119295380,0.30617087,653.23,652.46,3.02058481]
[1740119296781,0.30617087,653.23,652.26,1.14763846]
[1740119297085,0.30617087,653.23,652.27,2.17866272]
[1740119297387,0.30617087,653.23,652.28,2.17866272]
[1740119297687,0.30617087,653.23,652.29,2.17866272]
[1740119297886,0.30617087,653.23,652.3,2.17866272]
[1740119298088,0.30617087,653.23,652.3,1.14763846]
[1740119299283,0.30617087,653.23,652.31,3.02181673]
[1740119300089,0.30617087,653.23,652.32,3.02181673]
[1740119300289,0.30617087,653.23,652.33,2.17784132]
[1740119300491,0.30617087,653.23,652.34,2.17778254]
[1740119300788,0.30617087,653.23,652.35,2.17778254]
[1740119300985,0.30617087,653.23,652.36,2.17778254]
[1740119301183,0.30617087,653.23,652.32,3.02181673]
[1740119301387,0.30617087,653.23,652.33,2.17732595]
[1740119301587,0.30617087,653.23,652.34,2.17732595]
[1740119301889,0.30617087,653.23,652.33,3.02181673]
[1740119302089,0.30617087,653.23,652.34,2.17732126]
[1740119302388,0.30617087,653.23,652.35,2.17702264]
[1740119302686,0.30617087,653.23,652.36,2.17702264]
[1740119302891,0.30617087,653.23,652.36,3.02181673]
[1740119303589,0.30617087,653.23,652.37,2.17687509]
[1740119303790,0.30617087,653.23,652.38,2.17687509]
[1740119303992,0.30617087,653.23,652.39,2.17687509]
[1740119304190,0.30617087,653.23,652.4,2.1766878]
[1740119304390,0.30617087,653.23,652.38,3.02181673]
[1740119304591,0.30617087,653.23,652.39,2.17664777]
[1740119304790,0.30617087,653.23,652.4,2.17664777]
[1740119304990,0.30617087,653.23,652.41,3.02181673]
[1740119306798,0.30617087,653.23,652.42,5.19812894]
[1740119306994,0.30617087,653.23,652.43,2.17631221]
[1740119307198,0.30617087,653.23,652.44,2.17631221]
[1740119307393,0.30617087,653.23,652.45,2.17631221]
[1740119307698,0.30617087,653.23,652.46,2.17631221]
[1740119307896,0.30617087,653.23,652.47,2.17631221]
[1740119308099,0.30617087,653.23,652.48,2.17631221]
[1740119308294,0.30617087,653.23,652.49,5.19812894]
[1740119308493,0.30617087,653.23,652.5,2.17631221]
[1740119308697,0.30617087,653.23,652.51,2.17631221]
[1740119308894,0.30617087,653.23,652.52,2.17631221]
[1740119309098,0.30617087,653.23,652.49,3.02181673]
[1740119309295,0.30617087,653.23,652.5,2.17592288]
[1740119309495,0.30617087,653.23,652.51,2.17592288]
[1740119309701,0.30617087,653.23,652.52,2.17592288]
[1740119309901,0.30617087,653.23,652.49,3.02181673]
[1740119310102,0.30617087,653.23,652.53,3.02181673]
[1740119311101,0.30617087,653.23,652.29,1.14763846]
[1740119311301,0.30617087,653.23,652.3,2.1758077]
[1740119311496,0.30617087,653.23,652.31,2.1758077]
[1740119311698,0.30617087,653.23,652.32,2.1758077]
[1740119311898,0.30617087,653.23,652.32,3.01806916]
[1740119313201,0.30617087,653.23,652.23,1.14763846]
[1740119315698,0.30617087,653.23,652.14,1.14763846]
[1740119319100,0.30617087,653.23,652.09,1.14763846]
[1740119319299,0.30617087,653.23,652.15,3.01632623]
[1740119321106,0.30617087,653.23,652.09,1.14763846]
[1740119322107,0.30617087,653.23,652.11,1.14763846]
[1740119324410,0.30617087,653.23,652.12,3.01252877]
[1740119324707,0.30617087,653.23,652.12,4.16016723]
[1740119326110,0.30617087,653.23,652.13,3.01252877]
[1740119326913,0.30617087,653.23,652.2,1.14763846]
[1740119329406,0.30617087,653.23,652.21,2.17011845]
[1740119329608,0.30617087,653.23,652.22,2.17011845]
[1740119329813,0.30617087,653.23,652.23,2.17011845]
[1740119330007,0.30617087,653.23,652.24,2.17011845]
[1740119330209,0.30617087,653.23,652.2,1.14763846]
[1740119330210,0.30617087,653.23,652.25,2.17011845]
[1740119330411,0.30617087,653.23,652.26,2.17011845]
[1740119330610,0.30617087,653.23,652.27,2.17011845]
[1740119330807,0.30617087,653.23,652.28,2.17011845]
[1740119331012,0.30617087,653.23,652.29,2.17011845]
[1740119331211,0.30617087,653.23,652.3,2.17011845]
[1740119331515,0.30617087,653.23,652.31,2.17011845]
[1740119331709,0.30617087,653.23,652.32,2.17011845]
[1740119331908,0.30617087,653.23,652.33,2.17011845]
[1740119332114,0.30617087,653.23,652.34,2.17011845]
[1740119332316,0.30617087,653.23,652.35,5.1805134]
[1740119332515,0.30617087,653.23,652.36,2.17011845]
[1740119332813,0.30617087,653.23,652.37,2.17011845]
[1740119333012,0.30617087,653.23,652.38,2.17011845]
[1740119333213,0.30617087,653.23,652.39,2.17011845]
[1740119333412,0.30617087,653.23,652.4,2.17011845]
[1740119333609,0.30617087,653.23,652.41,2.17011845]
[1740119333818,0.30617087,653.23,652.42,2.17011845]
[1740119334010,0.30617087,653.23,652.43,2.17011845]
[1740119334215,0.30617087,653.23,652.44,5.1805134]
[1740119334415,0.30617087,653.23,652.45,2.17011845]
[1740119334615,0.30617087,653.23,652.46,2.17011845]
[1740119334815,0.30617087,653.23,652.47,2.17011845]
[1740119335115,0.30617087,653.23,652.48,2.17011845]
[1740119335310,0.30617087,653.23,652.49,2.17011845]
[1740119335513,0.30617087,653.23,652.5,2.17011845]
[1740119335711,0.30617087,653.23,652.51,2.17011845]
[1740119335912,0.30617087,653.23,652.52,2.17011845]
[1740119336110,0.30617087,653.23,652.53,2.17011845]
[1740119336309,0.30617087,653.23,652.54,2.17011845]
[1740119336509,0.30617087,653.23,652.55,2.17011845]
[1740119336711,0.30617087,653.23,652.56,2.17011845]
[1740119336920,0.30617087,653.23,652.57,2.17011845]
[1740119337115,0.30617087,653.23,652.58,5.1805134]
[1740119337315,0.30617087,653.23,652.59,2.17011845]
[1740119337617,0.30617087,653.23,652.6,2.17011845]
[1740119337817,0.30617087,653.23,652.61,2.17011845]
[1740119338018,0.30617087,653.23,652.58,3.01039495]
[1740119338215,0.30617087,653.23,652.59,5.17987376]
[1740119338518,0.30617087,653.23,652.6,2.16947881]
[1740119338718,0.30617087,653.23,652.61,2.16954271]
[1740119338918,0.30617087,653.23,652.62,2.16953358]
[1740119339111,0.30617087,653.23,652.59,3.01039495]
[1740119339513,0.30617087,653.23,652.46,1.14763846]
[1740119339714,0.30617087,653.23,652.47,2.16953091]
[1740119339913,0.30617087,653.23,652.48,2.16953091]
[1740119340118,0.30617087,653.23,652.49,2.16953091]
[1740119340318,0.30617087,653.23,652.5,5.1792852]
[1740119340514,0.30617087,653.23,652.51,2.16953091]
[1740119340719,0.30617087,653.23,652.52,2.16953091]
[1740119341021,0.30617087,653.23,652.53,2.16953091]
[1740119341220,0.30617087,653.23,652.54,2.16953091]
[1740119341520,0.30617087,653.23,652.5,3.00975429]
[1740119341720,0.30617087,653.23,652.51,5.17924764]
[1740119342019,0.30617087,653.23,652.52,2.16949335]
[1740119342221,0.30617087,653.23,652.53,2.16949335]
[1740119342417,0.30617087,653.23,652.54,2.16949335]
[1740119342622,0.30617087,653.23,652.51,3.00975429]
[1740119342818,0.30617087,653.23,652.52,2.16954957]